[Event "ENG-ch Women 2019"]
[Site "Hull"]
[Date "2019.08.31"]
[Round "3.7"]
[White "Gamal, Alaa"]
[Black "Bridgeman, Niamh"]
[Result "0-1"]
[ECO "A21"]
[WhiteElo "1762"]
[BlackElo "1511"]
[Annotator "NA"]
[PlyCount "144"]
[EventDate "2019.08.30"]
[EventType "swiss"]
[EventCountry "ENG"]
[SourceTitle "playchess.com"]
[Source "ChessBase"]
[SourceQuality "1"]
[TimeControl "5400+30"]

1. c4 {[%emt 0:00:12]} f5 {[%emt 0:00:00]} 2. g3 {[%emt 0:00:05]} Nf6 {[%emt 0:00:00]} 3. Bg2 {[%emt 0:00:03]} d6 {[%emt 0:00:03]} 4. Nc3 {[%emt 0:00:21]} e5 {[%emt 0:00:25]} 5. e3 {[%emt 0:00:16]} Be7 {[%emt 0:01:05]} 6. Nge2 {[%emt 0:00:06]} O-O {[%emt 0:00:24]} 7. O-O {[%emt 0:00:42]} c6 {[%emt 0:01:30]} 8. d4 {[%emt 0:00:02]} e4 {[%emt 0:00:34]} 9. h4 {[%emt 0:00:57]} Bd7 {[%emt 0:17:37]} 10. b3 {[%emt 0:00:43]} Na6 {[%emt 0:01:07]} 11. Nf4 {[%emt 0:01:42]} Nc7 {[%emt 0:04:55]} 12. d5 {[%emt 0:12:25]} c5 {[%emt 0:05:52]} 13. a4 {[%emt 0:02:42]} a6 {[%emt 0:05:03]} 14. a5 {[%emt 0:00:06]} Qe8 {[%emt 0:01:56]} 15. Ba3 {[%emt 0:00:38]} Ng4 {[%emt 0:02:44]} 16. Qd2 {[%emt 0:02:55]} Bf6 {[%emt 0:02:25]} 17. Rac1 {[%emt 0:02:49]} Be5 {[%emt 0:10:37]} 18. Nce2 {[%emt 0:02:02]} h6 {[%emt 0:04:23]} 19. h5 {[%emt 0:11:55]} Qd8 {[%emt 0:10:32]} 20. Ng6 {[%emt 0:01:44]} Re8 {[%emt 0:04:25]} 21. Nef4 {[%emt 0:23:28]} Qg5 {[%emt 0:06:31]} 22. Rb1 {[%emt 0:10:55]} Red8 {[%emt 0:02:59]} 23. f3 {[%emt 0:13:53]} Nxe3 {[%emt 0:05:32]} 24. Nxe5 {[%emt 0:01:03]} Nxf1 {[%emt 0:00:25]} 25. Qf2 {[%emt 0:07:11]} dxe5 {[%emt 0:01:55]} 26. Nh3 {[%emt 0:00:39]} Qxg3 {[%emt 0:01:43]} 27. Rxf1 {[%emt 0:00:45]} Qxf2+ {[%emt 0:00:41]} 28. Kxf2 {[%emt 0:00:42]} exf3 {[%emt 0:00:24]} 29. Bxf3 {[%emt 0:01:26]} Ne8 {[%emt 0:02:28]} 30. Bxc5 {[%emt 0:00:22]} Nf6 {[%emt 0:00:51]} 31. Bd6 {[%emt 0:01:30]} f4 {[%emt 0:04:00]} 32. Ng1 {[%emt 0:00:16]} e4 {[%emt 0:00:16]} 33. Bd1 {[%emt 0:00:35]} e3+ {[%emt 0:00:46]} 34. Kg2 {[%emt 0:00:38]} Bh3+ {[%emt 0:01:00]} 35. Nxh3 {[%emt 0:00:24]} Rxd6 {[%emt 0:00:08]} 36. Nxf4 {[%emt 0:00:09]} Re8 {[%emt 0:01:06]} 37. Ne6 {[%emt 0:00:13]} Ne4 {[%emt 0:00:40]} 38. Rg1 {[%emt 0:00:55]} Ng5 {[%emt 0:00:38]} 39. Nxg5 {[%emt 0:01:06]} hxg5 {[%emt 0:00:05]} 40. Kf3 {[%emt 0:00:03]} e2 {[%emt 0:00:19]} 41. Bxe2 {[%emt 0:01:03]} Rf6+ {[%emt 0:00:07]} 42. Kg4 {[%emt 0:00:09]} Rxe2 {[%emt 0:00:09]} 43. Kxg5 {[%emt 0:00:40]} Re3 {[%emt 0:01:31]} 44. Rb1 {[%emt 0:00:43]} Rff3 {[%emt 0:00:37]} 45. d6 {[%emt 0:00:10]} Rd3 {[%emt 0:00:16]} 46. c5 {[%emt 0:00:10]} Kf7 {[%emt 0:00:35]} 47. Re1 {[%emt 0:00:22]} Rfe3 {[%emt 0:00:36]} 48. Rf1+ {[%emt 0:00:34]} Ke6 {[%emt 0:00:12]} 49. Kg6 {[%emt 0:00:37]} Rd5 {[%emt 0:00:36]} 50. Kxg7 {[%emt 0:01:10]} Rg3+ {[%emt 0:00:42]} 51. Kh6 {[%emt 0:00:24]} Rxc5 {[%emt 0:00:25]} 52. Rd1 {[%emt 0:00:17]} Rd5 {[%emt 0:01:04]} 53. Rh1 {[%emt 0:00:50]} Kxd6 {[%emt 0:00:33]} 54. Kh7 {[%emt 0:00:02]} Rgg5 {[%emt 0:00:34]} 55. h6 {[%emt 0:00:03]} Kc6 {[%emt 0:00:21]} 56. Rc1+ {[%emt 0:00:16]} Rc5 {[%emt 0:00:10]} 57. Re1 {[%emt 0:00:17]} Kb5 {[%emt 0:00:48]} 58. Re7 {[%emt 0:00:15]} b6 {[%emt 0:00:05]} 59. axb6 {[%emt 0:00:44]} Kxb6 {[%emt 0:00:08]} 60. Re8 {[%emt 0:01:21]} Kb7 {[%emt 0:00:57]} 61. Kh8 {[%emt 0:00:39]} Rc8 {[%emt 0:00:15]} 62. Rxc8 {[%emt 0:00:27]} Kxc8 {[%emt 0:00:04]} 63. h7 {[%emt 0:00:18]} Kb7 {[%emt 0:00:10]} 64. b4 {[%emt 0:00:03]} Rh5 {[%emt 0:00:07]} 65. Kg8 {[%emt 0:00:35]} Kb6 {[%emt 0:00:08]} 66. h8=Q {[%emt 0:01:18]} Rxh8+ {[%emt 0:00:04]} 67. Kxh8 {[%emt 0:00:01]} Kb5 {[%emt 0:00:08]} 68. Kg7 {[%emt 0:00:10]} Kxb4 {[%emt 0:00:04]} 69. Kf6 {[%emt 0:00:02]} a5 {[%emt 0:00:11]} 70. Ke5 {[%emt 0:00:01]} a4 {[%emt 0:00:19]} 71. Kd4 {[%emt 0:00:02]} a3 {[%emt 0:00:12]} 72. Kd3 {[%emt 0:00:07]} a2 {[%emt 0:01:07]} 0-1

[Event "ENG-ch Women 2019"]
[Site "Hull"]
[Date "2019.08.31"]
[Round "3.8"]
[White "Sheikh, Anum"]
[Black "Boztas, Lana"]
[Result "1-0"]
[ECO "B09"]
[WhiteElo "1693"]
[BlackElo "1475"]
[Annotator "NA"]
[PlyCount "63"]
[EventDate "2019.08.30"]
[EventType "swiss"]
[EventCountry "ENG"]
[SourceTitle "playchess.com"]
[Source "ChessBase"]
[SourceQuality "1"]
[TimeControl "5400+30"]

1. e4 {[%emt 0:00:00]} g6 {[%emt 0:00:00]} 2. d4 {[%emt 0:00:00]} Bg7 {[%emt 0:00:00]} 3. Nc3 {[%emt 0:00:00]} c6 {[%emt 0:00:15]} 4. f4 {[%emt 0:00:09]} d6 {[%emt 0:00:19]} 5. Nf3 {[%emt 0:00:24]} Nf6 {[%emt 0:07:24]} 6. Bd3 {[%emt 0:03:38]} O-O {[%emt 0:00:34]} 7. O-O {[%emt 0:00:07]} a6 {[%emt 0:03:21]} 8. e5 {[%emt 0:00:51]} dxe5 {[%emt 0:00:38]} 9. fxe5 {[%emt 0:00:06]} Nd5 {[%emt 0:00:57]} 10. Ne4 {[%emt 0:05:31]} Bg4 {[%emt 0:03:43]} 11. c3 {[%emt 0:00:24]} Nd7 {[%emt 0:03:45]} 12. h3 {[%emt 0:00:52]} Bf5 {[%emt 0:00:37]} 13. Qe2 {[%emt 0:07:00]} Qb6 {[%emt 0:04:10]} 14. Kh1 {[%emt 0:02:54]} Rac8 {[%emt 0:01:01]} 15. a3 {[%emt 0:00:27]} Bxe4 {[%emt 0:00:36]} 16. Bxe4 {[%emt 0:00:21]} e6 {[%emt 0:00:24]} 17. c4 {[%emt 0:00:11]} Ne7 {[%emt 0:01:29]} 18. b4 {[%emt 0:01:35]} Qc7 {[%emt 0:00:56]} 19. Bb2 {[%emt 0:00:42]} b5 {[%emt 0:03:06]} 20. cxb5 {[%emt 0:00:41]} cxb5 {[%emt 0:00:16]} 21. Rac1 {[%emt 0:00:09]} Qb8 {[%emt 0:00:19]} 22. Nh2 {[%emt 0:12:15]} Nb6 {[%emt 0:05:34]} 23. Rxc8 {[%emt 0:01:29]} Nexc8 {[%emt 0:00:43]} 24. Ng4 {[%emt 0:00:25]} Qa7 {[%emt 0:02:32]} 25. Nf6+ {[%emt 0:00:24]} Kh8 {[%emt 0:00:24]} 26. Qg4 {[%emt 0:02:43]} Nc4 {[%emt 0:01:14]} 27. Qh4 {[%emt 0:00:23]} h6 {[%emt 0:04:39]} 28. Bc1 {[%emt 0:00:11]} h5 {[%emt 0:01:09]} 29. Nxh5 {[%emt 0:00:09]} Kg8 {[%emt 0:01:54]} 30. Nxg7 {[%emt 0:00:59]} Kxg7 {[%emt 0:00:06]} 31. Bh6+ {[%emt 0:00:09]} Kg8 {[%emt 0:00:03]} 32. Qf6 {[%emt 0:00:06]} 1-0

[Event "ENG-ch Women 2019"]
[Site "Hull"]
[Date "2019.08.31"]
[Round "3.9"]
[White "Headlong, Georgia"]
[Black "Denning, Julie L"]
[Result "0-1"]
[ECO "B23"]
[WhiteElo "1482"]
[BlackElo "1629"]
[Annotator "NA"]
[PlyCount "148"]
[EventDate "2019.08.30"]
[EventType "swiss"]
[EventCountry "ENG"]
[SourceTitle "playchess.com"]
[Source "ChessBase"]
[SourceQuality "1"]
[TimeControl "5400+30"]

1. e4 {[%emt 0:00:00]} c5 {[%emt 0:00:00]} 2. Nc3 {[%emt 0:00:00]} d6 {[%emt 0:00:24]} 3. g3 {[%emt 0:00:31]} Nf6 {[%emt 0:00:49]} 4. Bg2 {[%emt 0:00:21]} e5 {[%emt 0:00:34]} 5. d3 {[%emt 0:01:14]} Be7 {[%emt 0:00:41]} 6. h3 {[%emt 0:01:42]} Be6 {[%emt 0:00:49]} 7. Be3 {[%emt 0:01:04]} a6 {[%emt 0:01:32]} 8. Nge2 {[%emt 0:02:01]} b5 {[%emt 0:03:02]} 9. f4 {[%emt 0:05:41]} Ra7 {[%emt 0:03:51]} 10. f5 {[%emt 0:05:05]} Bd7 {[%emt 0:01:29]} 11. g4 {[%emt 0:02:11]} h6 {[%emt 0:01:27]} 12. Ng3 {[%emt 0:03:44]} b4 {[%emt 0:02:15]} 13. Nce2 {[%emt 0:01:47]} Rc7 {[%emt 0:03:22]} 14. Qd2 {[%emt 0:15:35]} a5 {[%emt 0:02:05]} 15. a3 {[%emt 0:04:33]} Bc6 {[%emt 0:05:33]} 16. axb4 {[%emt 0:04:23]} axb4 {[%emt 0:00:47]} 17. c3 {[%emt 0:02:16]} bxc3 {[%emt 0:02:30]} 18. bxc3 {[%emt 0:04:37]} Nbd7 {[%emt 0:01:13]} 19. d4 {[%emt 0:02:56]} cxd4 {[%emt 0:03:54]} 20. cxd4 {[%emt 0:00:17]} Nb6 {[%emt 0:02:10]} 21. Qd3 {[%emt 0:03:13]} Qd7 {[%emt 0:03:07]} 22. Rb1 {[%emt 0:04:17]} Nc8 {[%emt 0:04:34]} 23. dxe5 {[%emt 0:02:19]} dxe5 {[%emt 0:00:58]} 24. Qxd7+ {[%emt 0:00:16]} Rxd7 {[%emt 0:00:42]} 25. Kf2 {[%emt 0:00:57]} O-O {[%emt 0:01:16]} 26. Rhd1 {[%emt 0:02:08]} Rfd8 {[%emt 0:00:38]} 27. Rxd7 {[%emt 0:00:55]} Nxd7 {[%emt 0:05:15]} 28. Rc1 {[%emt 0:02:47]} Bb7 {[%emt 0:07:29]} 29. Rc7 {[%emt 0:01:15]} Ba6 {[%emt 0:02:56]} 30. Nc3 {[%emt 0:02:43]} Bd6 {[%emt 0:01:48]} 31. Rc6 {[%emt 0:01:19]} Nb8 {[%emt 0:00:37]} 32. Rxa6 {[%emt 0:04:17]} Nxa6 {[%emt 0:00:30]} 33. Nd5 {[%emt 0:00:31]} f6 {[%emt 0:02:07]} 34. Bf1 {[%emt 0:01:21]} Nc5 {[%emt 0:01:22]} 35. Bc4 {[%emt 0:01:14]} Kf8 {[%emt 0:00:51]} 36. h4 {[%emt 0:02:37]} Rd7 {[%emt 0:03:59]} 37. g5 {[%emt 0:01:48]} hxg5 {[%emt 0:00:22]} 38. hxg5 {[%emt 0:00:08]} fxg5 {[%emt 0:00:11]} 39. Bxg5 {[%emt 0:00:33]} Rb7 {[%emt 0:00:27]} 40. Kf3 {[%emt 0:04:04]} Rb2 {[%emt 0:03:41]} 41. Nf1 {[%emt 0:05:21]} Nb6 {[%emt 0:07:45]} 42. Nxb6 {[%emt 0:01:02]} Rxb6 {[%emt 0:00:10]} 43. Ne3 {[%emt 0:00:56]} Rb1 {[%emt 0:03:39]} 44. Bd5 {[%emt 0:01:27]} Nd7 {[%emt 0:07:35]} 45. Ng4 {[%emt 0:01:41]} Rh1 {[%emt 0:04:28]} 46. Kg3 {[%emt 0:00:56]} Rh5 {[%emt 0:02:21]} 47. Bh4 {[%emt 0:00:42]} Be7 {[%emt 0:02:27]} 48. Bxe7+ {[%emt 0:00:27]} Kxe7 {[%emt 0:00:08]} 49. Be6 {[%emt 0:00:38]} Nc5 {[%emt 0:02:02]} 50. Bd5 {[%emt 0:00:06]} Nd3 {[%emt 0:01:23]} 51. Nf2 {[%emt 0:00:39]} Nf4 {[%emt 0:01:21]} 52. Bc4 {[%emt 0:00:41]} Kd6 {[%emt 0:00:20]} 53. Nd3 {[%emt 0:01:10]} Rh8 {[%emt 0:00:34]} 54. Nxf4 {[%emt 0:00:17]} exf4+ {[%emt 0:00:11]} 55. Kxf4 {[%emt 0:00:04]} Rh4+ {[%emt 0:00:37]} 56. Ke3 {[%emt 0:00:19]} Ke5 {[%emt 0:00:07]} 57. Bd5 {[%emt 0:00:09]} Rh3+ {[%emt 0:00:56]} 58. Kd2 {[%emt 0:00:21]} Rh4 {[%emt 0:00:18]} 59. Ke3 {[%emt 0:00:05]} Rh3+ {[%emt 0:00:19]} 60. Kd2 {[%emt 0:00:06]} Rh1 {[%emt 0:00:46]} 61. Kd3 {[%emt 0:00:17]} Rd1+ {[%emt 0:00:43]} 62. Kc4 {[%emt 0:00:10]} Rd4+ {[%emt 0:00:16]} 63. Kc3 {[%emt 0:01:07]} Rxe4 {[%emt 0:00:07]} 64. Be6 {[%emt 0:01:28]} g5 {[%emt 0:00:54]} 65. Kd3 {[%emt 0:00:41]} Rf4 {[%emt 0:00:58]} 66. Ke3 {[%emt 0:00:16]} g4 {[%emt 0:00:38]} 67. f6 {[%emt 0:00:37]} Rf3+ {[%emt 0:00:05]} 68. Ke2 {[%emt 0:00:16]} Kxe6 {[%emt 0:00:02]} 69. f7 {[%emt 0:00:08]} Kxf7 {[%emt 0:00:08]} 70. Ke1 {[%emt 0:00:12]} Kf6 {[%emt 0:00:02]} 71. Ke2 {[%emt 0:00:09]} Kf5 {[%emt 0:00:04]} 72. Ke1 {[%emt 0:00:07]} Kf4 {[%emt 0:00:06]} 73. Ke2 {[%emt 0:00:09]} g3 {[%emt 0:00:11]} 74. Ke1 {[%emt 0:00:11]} g2 {[%emt 0:00:44]} 0-1

[Event "ENG-ch Women 2019"]
[Site "Hull"]
[Date "2019.08.31"]
[Round "3.10"]
[White "Ball, Katie C"]
[Black "Sengenberger, Sara"]
[Result "1-0"]
[ECO "A46"]
[WhiteElo "1472"]
[BlackElo "1570"]
[Annotator "NA"]
[PlyCount "143"]
[EventDate "2019.08.30"]
[EventType "swiss"]
[EventCountry "ENG"]
[SourceTitle "playchess.com"]
[Source "ChessBase"]
[SourceQuality "1"]
[TimeControl "5400+30"]

1. d4 {[%emt 0:00:00]} Nf6 {[%emt 0:00:00]} 2. Nf3 {[%emt 0:00:00]} e6 {[%emt 0:00:12]} 3. Bg5 {[%emt 0:00:26]} Bb4+ {[%emt 0:00:47]} 4. c3 {[%emt 0:00:17]} Be7 {[%emt 0:00:34]} 5. Nbd2 {[%emt 0:01:36]} d5 {[%emt 0:01:07]} 6. e3 {[%emt 0:01:25]} O-O {[%emt 0:01:24]} 7. Ne5 {[%emt 0:05:36]} h6 {[%emt 0:02:24]} 8. Bh4 {[%emt 0:00:32]} Nbd7 {[%emt 0:04:57]} 9. f4 {[%emt 0:03:39]} c5 {[%emt 0:05:00]} 10. Bd3 {[%emt 0:03:36]} c4 {[%emt 0:01:57]} 11. Bb1 {[%emt 0:04:28]} Ne4 {[%emt 0:02:28]} 12. Bxe7 {[%emt 0:00:40]} Qxe7 {[%emt 0:00:07]} 13. Nxe4 {[%emt 0:00:20]} dxe4 {[%emt 0:02:05]} 14. Nxd7 {[%emt 0:07:19]} Qxd7 {[%emt 0:01:46]} 15. Bxe4 {[%emt 0:01:10]} Rb8 {[%emt 0:01:19]} 16. O-O {[%emt 0:00:58]} b5 {[%emt 0:01:09]} 17. Qe2 {[%emt 0:06:40]} Bb7 {[%emt 0:00:49]} 18. Bxb7 {[%emt 0:02:50]} Rxb7 {[%emt 0:01:54]} 19. Rf3 {[%emt 0:03:16]} f5 {[%emt 0:06:20]} 20. Rh3 {[%emt 0:03:09]} Qf7 {[%emt 0:04:43]} 21. Kh1 {[%emt 0:26:36]} Qf6 {[%emt 0:02:18]} 22. g4 {[%emt 0:03:09]} g5 {[%emt 0:02:53]} 23. fxg5 {[%emt 0:07:33]} hxg5 {[%emt 0:01:01]} 24. Rf1 {[%emt 0:00:38]} Rh7 {[%emt 0:06:12]} 25. Rxh7 {[%emt 0:01:56]} Kxh7 {[%emt 0:00:08]} 26. gxf5 {[%emt 0:00:30]} exf5 {[%emt 0:00:32]} 27. e4 {[%emt 0:02:42]} f4 {[%emt 0:04:50]} 28. e5 {[%emt 0:02:04]} Qc6+ {[%emt 0:03:02]} 29. Qg2 {[%emt 0:01:25]} Qg6 {[%emt 0:04:58]} 30. h3 {[%emt 0:02:29]} Rg8 {[%emt 0:06:03]} 31. Re1 {[%emt 0:02:29]} Re8 {[%emt 0:02:35]} 32. Qe4 {[%emt 0:00:39]} Qxe4+ {[%emt 0:01:03]} 33. Rxe4 {[%emt 0:00:02]} f3 {[%emt 0:00:56]} 34. Kg1 {[%emt 0:00:05]} Kg6 {[%emt 0:02:11]} 35. Kf2 {[%emt 0:01:14]} Rh8 {[%emt 0:01:11]} 36. Kxf3 {[%emt 0:02:58]} Kf5 {[%emt 0:02:21]} 37. Re2 {[%emt 0:01:23]} Rxh3+ {[%emt 0:00:45]} 38. Kg2 {[%emt 0:00:27]} g4 {[%emt 0:02:17]} 39. e6 {[%emt 0:00:29]} Rh8 {[%emt 0:03:08]} 40. e7 {[%emt 0:00:25]} Re8 {[%emt 0:00:38]} 41. d5 {[%emt 0:00:04]} Kf6 {[%emt 0:01:18]} 42. d6 {[%emt 0:00:01]} Kf7 {[%emt 0:00:35]} 43. Kf2 {[%emt 0:00:40]} a5 {[%emt 0:00:45]} 44. d7 {[%emt 0:00:21]} Rxe7 {[%emt 0:00:22]} 45. d8=Q {[%emt 0:00:05]} g3+ {[%emt 0:00:52]} 46. Kf1 {[%emt 0:01:02]} Ra7 {[%emt 0:01:32]} 47. Qe8+ {[%emt 0:00:31]} Kf6 {[%emt 0:00:34]} 48. Qf8+ {[%emt 0:01:20]} Kg6 {[%emt 0:00:33]} 49. Rg2 {[%emt 0:00:26]} Rf7+ {[%emt 0:00:39]} 50. Qxf7+ {[%emt 0:00:11]} Kxf7 {[%emt 0:00:06]} 51. Rxg3 {[%emt 0:00:02]} b4 {[%emt 0:00:24]} 52. Re3 {[%emt 0:00:35]} b3 {[%emt 0:00:27]} 53. a3 {[%emt 0:00:03]} Kf6 {[%emt 0:00:10]} 54. Re4 {[%emt 0:00:02]} Kf5 {[%emt 0:00:20]} 55. Rxc4 {[%emt 0:00:18]} Ke5 {[%emt 0:00:10]} 56. Ke2 {[%emt 0:00:03]} Kd5 {[%emt 0:00:14]} 57. Kd3 {[%emt 0:00:02]} a4 {[%emt 0:00:25]} 58. Re4 {[%emt 0:00:05]} Kc5 {[%emt 0:00:14]} 59. c4 {[%emt 0:00:18]} Kc6 {[%emt 0:00:15]} 60. Re5 {[%emt 0:00:26]} Kd6 {[%emt 0:00:17]} 61. Kd4 {[%emt 0:00:04]} Kc6 {[%emt 0:00:41]} 62. Rb5 {[%emt 0:01:20]} Kd6 {[%emt 0:00:14]} 63. Rb6+ {[%emt 0:00:02]} Kc7 {[%emt 0:00:09]} 64. Kc5 {[%emt 0:00:03]} Kd7 {[%emt 0:00:14]} 65. Kd5 {[%emt 0:00:16]} Kc7 {[%emt 0:00:14]} 66. Rd6 {[%emt 0:00:12]} Kb7 {[%emt 0:00:12]} 67. Rc6 {[%emt 0:00:39]} Ka7 {[%emt 0:00:11]} 68. Kc5 {[%emt 0:00:05]} Kb7 {[%emt 0:00:15]} 69. Kb5 {[%emt 0:00:34]} Ka8 {[%emt 0:00:38]} 70. Rc7 {[%emt 0:00:20]} Kb8 {[%emt 0:00:10]} 71. Kb6 {[%emt 0:00:01]} Ka8 {[%emt 0:00:11]} 72. Rc8# {[%emt 0:00:02]} 1-0

[Event "ENG-ch Women 2019"]
[Site "Hull"]
[Date "2019.08.31"]
[Round "3.12"]
[White "Jayawarna, Tarini"]
[Black "Arora, Tashika"]
[Result "0-1"]
[ECO "B78"]
[WhiteElo "1337"]
[BlackElo "1447"]
[Annotator "NA"]
[PlyCount "90"]
[EventDate "2019.08.30"]
[EventType "swiss"]
[EventCountry "ENG"]
[SourceTitle "playchess.com"]
[Source "ChessBase"]
[SourceQuality "1"]
[TimeControl "5400+30"]

1. e4 {[%emt 0:00:00]} c5 {[%emt 0:00:00]} 2. Nf3 {[%emt 0:00:00]} d6 {[%emt 0:00:00]} 3. d4 {[%emt 0:00:00]} cxd4 {[%emt 0:00:00]} 4. Nxd4 {[%emt 0:00:00]} Nf6 {[%emt 0:00:00]} 5. Nc3 {[%emt 0:00:00]} g6 {[%emt 0:00:00]} 6. Be3 {[%emt 0:00:01]} Bg7 {[%emt 0:00:20]} 7. f3 {[%emt 0:00:15]} O-O {[%emt 0:00:20]} 8. Bc4 {[%emt 0:00:24]} Nc6 {[%emt 0:01:36]} 9. Qd2 {[%emt 0:00:25]} Bd7 {[%emt 0:01:02]} 10. O-O-O {[%emt 0:00:30]} Rc8 {[%emt 0:00:19]} 11. Bb3 {[%emt 0:00:33]} Na5 {[%emt 0:02:43]} 12. g4 {[%emt 0:01:52]} Nxb3+ {[%emt 0:02:01]} 13. Nxb3 {[%emt 0:00:22]} a6 {[%emt 0:02:50]} 14. h4 {[%emt 0:01:04]} h5 {[%emt 0:02:14]} 15. gxh5 {[%emt 0:02:26]} Nxh5 {[%emt 0:00:14]} 16. Nd4 {[%emt 0:06:42]} b5 {[%emt 0:01:15]} 17. Nde2 {[%emt 0:08:03]} Qa5 {[%emt 0:05:28]} 18. Kb1 {[%emt 0:10:15]} Rfe8 {[%emt 0:10:03]} 19. Rdg1 {[%emt 0:22:47]} Be6 {[%emt 0:03:29]} 20. Bd4 {[%emt 0:04:36]} Bxa2+ {[%emt 0:05:00]} 21. Kc1 {[%emt 0:01:29]} Bc4 {[%emt 0:01:00]} 22. Bxg7 {[%emt 0:02:06]} Kxg7 {[%emt 0:04:54]} 23. Qe3 {[%emt 0:28:06]} Bxe2 {[%emt 0:06:43]} 24. Qxe2 {[%emt 0:02:01]} Rxc3 {[%emt 0:07:09]} 25. bxc3 {[%emt 0:00:33]} Ng3 {[%emt 0:00:11]} 26. Rxg3 {[%emt 0:03:02]} Qa1+ {[%emt 0:00:08]} 27. Kd2 {[%emt 0:00:04]} Qxh1 {[%emt 0:00:07]} 28. Rg4 {[%emt 0:00:52]} Rh8 {[%emt 0:02:43]} 29. Qf2 {[%emt 0:00:09]} e5 {[%emt 0:01:30]} 30. Kd3 {[%emt 0:04:12]} Qd1+ {[%emt 0:00:51]} 31. Ke3 {[%emt 0:00:25]} Rc8 {[%emt 0:00:36]} 32. Qd2 {[%emt 0:01:13]} Qa1 {[%emt 0:03:06]} 33. Qxd6 {[%emt 0:00:47]} Qxc3+ {[%emt 0:00:44]} 34. Kf2 {[%emt 0:00:07]} Qc5+ {[%emt 0:02:03]} 35. Qxc5 {[%emt 0:00:12]} Rxc5 {[%emt 0:00:02]} 36. Rg1 {[%emt 0:01:01]} Rxc2+ {[%emt 0:00:09]} 37. Ke3 {[%emt 0:00:14]} a5 {[%emt 0:00:52]} 38. Kd3 {[%emt 0:00:31]} Rc8 {[%emt 0:00:05]} 39. Rb1 {[%emt 0:00:48]} b4 {[%emt 0:00:36]} 40. Rb3 {[%emt 0:00:49]} Rc3+ {[%emt 0:00:28]} 41. Rxc3 {[%emt 0:00:12]} bxc3 {[%emt 0:00:02]} 42. Kxc3 {[%emt 0:00:08]} Kh6 {[%emt 0:00:13]} 43. Kb3 {[%emt 0:00:14]} Kh5 {[%emt 0:00:05]} 44. Ka4 {[%emt 0:00:06]} Kxh4 {[%emt 0:00:03]} 45. Kxa5 {[%emt 0:00:11]} Kg3 {[%emt 0:00:04]} 0-1

[Event "ENG-ch Women 2019"]
[Site "Hull"]
[Date "2019.08.31"]
[Round "3.14"]
[White "Kumaar, Sai Chinmayee N"]
[Black "Pettit, Felicity Ol"]
[Result "1-0"]
[ECO "D02"]
[WhiteElo "1622"]
[BlackElo "1233"]
[Annotator "NA"]
[PlyCount "89"]
[EventDate "2019.08.30"]
[EventType "swiss"]
[EventCountry "ENG"]
[SourceTitle "playchess.com"]
[Source "ChessBase"]
[SourceQuality "1"]
[TimeControl "5400+30"]

1. d4 {[%emt 0:00:00]} d5 {[%emt 0:00:00]} 2. Nf3 {[%emt 0:00:00]} Nf6 {[%emt 0:00:00]} 3. Bf4 {[%emt 0:00:00]} Bg4 {[%emt 0:00:17]} 4. e3 {[%emt 0:00:00]} e6 {[%emt 0:00:56]} 5. c3 {[%emt 0:00:00]} Bd6 {[%emt 0:00:46]} 6. Bg3 {[%emt 0:00:00]} O-O {[%emt 0:01:25]} 7. Be2 {[%emt 0:00:05]} c5 {[%emt 0:01:14]} 8. Nbd2 {[%emt 0:00:09]} a6 {[%emt 0:01:14]} 9. Rc1 {[%emt 0:02:45]} Bxg3 {[%emt 0:03:33]} 10. hxg3 {[%emt 0:00:03]} Nc6 {[%emt 0:00:37]} 11. Ng5 {[%emt 0:05:06]} Bxe2 {[%emt 0:04:31]} 12. Qxe2 {[%emt 0:02:30]} c4 {[%emt 0:05:19]} 13. e4 {[%emt 0:04:06]} e5 {[%emt 0:08:02]} 14. dxe5 {[%emt 0:02:32]} Nxe5 {[%emt 0:00:50]} 15. Rb1 {[%emt 0:01:58]} Re8 {[%emt 0:10:42]} 16. Kf1 {[%emt 0:04:59]} Nxe4 {[%emt 0:01:51]} 17. Ndxe4 {[%emt 0:00:34]} dxe4 {[%emt 0:01:39]} 18. Nxh7 {[%emt 0:12:27]} Qd3 {[%emt 0:03:38]} 19. Qxd3 {[%emt 0:00:58]} exd3 {[%emt 0:00:31]} 20. Ng5 {[%emt 0:01:16]} Ng4 {[%emt 0:01:56]} 21. Rh4 {[%emt 0:02:10]} Ne5 {[%emt 0:04:58]} 22. Re4 {[%emt 0:01:46]} f6 {[%emt 0:01:27]} 23. Nh3 {[%emt 0:02:09]} b5 {[%emt 0:00:36]} 24. Rd1 {[%emt 0:02:20]} Nc6 {[%emt 0:03:37]} 25. Rxe8+ {[%emt 0:00:23]} Rxe8 {[%emt 0:00:46]} 26. Re1 {[%emt 0:00:39]} Rd8 {[%emt 0:01:58]} 27. Nf4 {[%emt 0:03:50]} Kf7 {[%emt 0:04:39]} 28. f3 {[%emt 0:00:55]} Ne7 {[%emt 0:02:49]} 29. Ne6 {[%emt 0:04:01]} Rd6 {[%emt 0:01:57]} 30. Nd4 {[%emt 0:01:34]} Nc6 {[%emt 0:02:38]} 31. Nxc6 {[%emt 0:03:08]} Rxc6 {[%emt 0:00:04]} 32. Kf2 {[%emt 0:01:51]} Re6 {[%emt 0:02:35]} 33. Rxe6 {[%emt 0:00:14]} Kxe6 {[%emt 0:00:02]} 34. g4 {[%emt 0:02:22]} Ke5 {[%emt 0:00:47]} 35. Ke3 {[%emt 0:00:07]} g5 {[%emt 0:01:56]} 36. g3 {[%emt 0:00:20]} f5 {[%emt 0:02:14]} 37. gxf5 {[%emt 0:06:12]} Kxf5 {[%emt 0:00:08]} 38. b4 {[%emt 0:03:30]} Ke6 {[%emt 0:03:21]} 39. Kd2 {[%emt 0:00:32]} Kf5 {[%emt 0:09:49]} 40. Ke3 {[%emt 0:00:11]} Ke6 {[%emt 0:02:36]} 41. Kd2 {[%emt 0:00:13]} Kd6 {[%emt 0:00:38]} 42. Ke3 {[%emt 0:01:15]} a5 {[%emt 0:00:45]} 43. bxa5 {[%emt 0:00:16]} Kc6 {[%emt 0:00:32]} 44. f4 {[%emt 0:00:02]} b4 {[%emt 0:04:38]} 45. cxb4 {[%emt 0:00:37]} 1-0